Cogmind - Beta 13 @@@ ROGUE MODE // 2024.04.05 @ 20:38:34 Player: MasterLemons Result: Destroyed self with Light Nuclear Core chain reaction Performance ------------- Evolutions (0) 0 Regions Visited (1) 200 Robots Destroyed (11) 55 Value Destroyed (345) 345 Prototype IDs (0) 0 Alien Tech Used (0) 0 Bonus (0) 0 TOTAL SCORE: 600 Bonus ------- None Cogmind --------- Core Integrity 0/250 Matter 279/300 Energy 30/100 System Corruption 6% Temperature Cool (65) Movement Walking (260) Ox2 Location -10/Materials Parts ------- > --- POWER (1) -------- (None) > --- PROPULSION (2) --- Aluminum Leg > --- UTILITY (2) ------ Large Storage Unit Structural Scanner > --- WEAPON (2) ------- Light Assault Rifle > --- INVENTORY (15) --- Light Ion Engine Light Ion Engine Targeting Computer Hardened Light Armor Plating Hardened Light Armor Plating Mining Claw Peak State ------------ > --- POWER ------------ Ion Engine > --- PROPULSION ------- Aluminum Leg Aluminum Leg > --- UTILITY ---------- Small Storage Unit Structural Scanner > --- WEAPON ----------- Heavy EM Pulse Gun Heavy EM Pulse Gun > --- INVENTORY -------- Light Ion Engine Light Ion Engine Hardened Light Armor Plating Heavy EM Pulse Gun Heavy EM Pulse Gun Light Assault Rifle Light Assault Rifle [Rating: 10] Favorites ----------- Power Ion Engine Engine Ion Engine Propulsion Aluminum Leg Leg Aluminum Leg Utility Structural Scanner Device Structural Scanner Storage Small Storage Unit Weapon Heavy EM Pulse Gun Energy Gun Heavy EM Pulse Gun Ballistic Gun Light Assault Rifle Build | -11 -10 ------- Run | Yrd Mat Slots Evolved . | . . Power . | . . Propulsion . | . . Utility . | . . Weapon . | . . Parts Attached 21 | 7 14 Power 2 | 1 1 Engine 2 | 1 1 Core . | . . Reactor . | . . Propulsion 4 | 2 2 Treads . | . . Leg 4 | 2 2 Wheel . | . . Hover . | . . Flight . | . . Utility 4 | 1 3 Device 2 | . 2 Storage 2 | 1 1 Processor . | . . Hackware . | . . Protection . | . . Artifact . | . . Weapon 11 | 3 8 Energy Gun 6 | 1 5 Energy Cannon . | . . Ballistic Gun 5 | 2 3 Ballistic Cannon . | . . Launcher . | . . Special Weapon . | . . Impact Weapon . | . . Slashing Weapon . | . . Piercing Weapon . | . . Special Melee Weapon . | . . Unidentified Prototypes . | . . Corrupted Parts 1 | . 1 System Corruption 6 | . 6 Parts Lost 8 | . 8 Power 1 | . 1 Propulsion 2 | . 2 Utility . | . . Weapon 5 | . 5 Highest Loss Streak 4 | . 4 To Critical Strikes . | . . Average Slot Usage (%) 93 | . 93 Engine 12 | . 12 Leg 25 | . 25 Device 13 | . 13 Storage 14 | . 14 Energy Gun 13 | . 13 Ballistic Gun 12 | . 12 Naked Turns . | . . Heaviest Build 30 | 12 30 Greatest Support 20 | 20 20 Greatest Overweight (x) 8 | 1 8 Average Overweight (x) . | . . Largest Inventory Capacity 15 | 8 15 Average Capacity 10 | 7 11 Most Carried 12 | 5 12 Average Carried 6 | 1 6 Final Capacity 15 | 8 15 Final Carried 6 | 1 6 Class Distribution -------------------- 100% | Mutant Dominant Class ---------------- Mutant | -10/Materials Resources | -11 -10 ----------- Run | Yrd Mat Matter Collected 393 | 205 188 Remotely . | . . Salvage Created 357 | . 357 Parts 19 | . 19 Haulers Intercepted . | . . Recyclers Shooed . | . . Parts Field Recycled . | . . Retrieved Matter . | . . Parts Self-Destructed . | . . Prevented . | . . Kills | -11 -10 ------- Run | Yrd Mat Combat Hostiles Destroyed 11 | . 11 Guns 8 | . 8 AOE 2 | . 2 Classes Destroyed 2 | . 2 Swarmer 3 | . 3 Grunt 8 | . 8 Best Kill Streak 3 | . 3 Combat Bots Only 3 | . 3 Max Kills in Single Turn 1 | . 1 Gunslinging . | . . Exploded 1 | . 1 Melee . | . . Uniques/NPCs Destroyed . | . . Combat | -11 -10 -------- Run | Yrd Mat Hostile Shots Fired 77 | . 77 Missed 12 | . 12 Damage Taken 907 | . 907 Core 252 | . 252 Absorbed by Shields . | . . Core Remaining (%) 100 | 100 . Volleys Fired 51 | . 51 Largest 2 | . 2 Hottest 90 | . 90 Shots Fired 85 | . 85 Gun 85 | . 85 Cannon . | . . Launcher . | . . Special . | . . Kinetic 42 | . 42 Thermal . | . . Explosive . | . . Electromagnetic 43 | . 43 Robot Hit Streak 14 | . 14 Robot Miss Streak 3 | . 3 Penetration Max . | . . Secondary Targets . | . . Shots Hit Robots 59 | . 59 Core Hits 15 | . 15 Critical Kills . | . . Critical Parts Destroyed . | . . Critical Strikes 2 | . 2 Corrupt 2 | . 2 Melee Attacks . | . . Impact . | . . Slashing . | . . Piercing . | . . Sneak Attacks . | . . Combat Hostiles . | . . Follow-up Attacks . | . . Damage Inflicted 1038 | . 1038 Guns 702 | . 702 Cannons . | . . Explosions 336 | . 336 Melee . | . . Ramming . | . . Kinetic 210 | . 210 Thermal 336 | . 336 Explosive . | . . Electromagnetic 492 | . 492 Impact . | . . Slashing . | . . Piercing . | . . Highest Corruption 6 | . 6 Average Corruption 6 | . 6 Corruption Purged . | . . Corruption Blocked . | . . Effects 1 | . 1 Parts Rejected 1 | . 1 Overload Shots . | . . Overflow Damage 81 | . 81 Projectiles . | . . Explosions 81 | . 81 Melee . | . . Knockbacks . | . . Impact . | . . Kinetic . | . . Secondary . | . . Self-Inflicted Damage 178 | . 178 Shots 4 | . 4 Rammed . | . . Targets Rammed 1 | . 1 Kicked 1 | . 1 Crushed . | . . Highest Temperature 228 | . 228 Average Temperature 68 | . 68 Received Heat Transfer 375 | . 375 Siege Activations . | . . Robots Corrupted 1 | . 1 Combat Hostiles 1 | . 1 Parts Fried . | . . Impact Corruptions . | . . Robots Melted . | . . Combat Hostiles . | . . Parts Melted . | . . Heat Transferred 350 | . 350 Parts Sabotaged . | . . Parts Stolen . | . . Parts Stripped . | . . Power Chain Reactions 4 | . 4 Alert | -11 -10 ------- Run | Yrd Mat Peak Influence 210 | . 210 Initial . | . . Average 86 | . 93 Maximum Alert Level 1 | . 1 Low Security (%) 95 | 100 95 Level 1 4 | . 4 Level 2 . | . . Level 3 . | . . Level 4 . | . . Level 5 . | . . High Security . | . . Max Security . | . . Squads Dispatched 4 | . 4 Investigation 1 | . 1 Extermination . | . . Reinforcement 3 | . 3 Assault . | . . Garrison . | . . Intercept . | . . Searches Triggered . | . . Construction Impeded . | . . Haulers Reinforced . | . . Active Scanning Responses . | . . Cargo Convoy Interrupts . | . . Stealth | -11 -10 --------- Run | Yrd Mat Distress Signals 1 | . 1 Communications Jammed . | . . Distress Signals . | . . Times Spotted 21 | . 21 Peak Tracking Total 4 | . 4 Tactical Retreats . | . . Traps | -11 -10 ------- Run | Yrd Mat Traps Triggered 3 | . 3 Indirectly . | . . Trap Hack Attempts . | . . Triggered . | . . Disarmed . | . . Reprogrammed . | . . Reused . | . . Traps Extracted . | . . Installed . | . . Triggered . | . . Machines | -11 -10 ---------- Run | Yrd Mat Machines Disabled 3 | . 3 Max in Single Turn 1 | . 1 Machines Repaired . | . . Machines Dismantled . | . . Machines Sabotaged . | . . Overloaded Fab Kills . | . . Hacking | -11 -10 --------- Run | Yrd Mat Machines Accessed 2 | . 2 Terminals 2 | . 2 Fabricators . | . . Repair Stations . | . . Recycling Units . | . . Scanalyzers . | . . Garrison Access . | . . Total Hacks 5 | . 5 Successful 1 | . 1 Failed 4 | . 4 Catastrophic 1 | . 1 Database Lockouts . | . . Manual . | . . Terminals 5 | . 5 Fabricators . | . . Repair Stations . | . . Recycling Units . | . . Scanalyzers . | . . Garrison Access . | . . Terminal Hacks 1 | . 1 Record 1 | . 1 Fabricator Hacks . | . . Repair Station Hacks . | . . Recycling Unit Hacks . | . . Scanalyzer . | . . Garrison Access Hacks . | . . Unauthorized Hacks . | . . Terminals . | . . Fabricators . | . . Repair Stations . | . . Recycling Units . | . . Scanalyzers . | . . Garrison Access . | . . Data Cores Recovered . | . . Used . | . . Hacking Detections 2 | . 2 Full Trace Events 1 | . 1 Feedback Events . | . . Feedback Blocked . | . . Robot Schematics Acquired . | . . Robots Built . | . . Authchips . | . . Time . | . . Total Robot Build Rating . | . . Part Schematics Acquired . | . . Parts Built . | . . Authchips . | . . Time . | . . Total Part Build Rating . | . . Parts Repaired . | . . Time . | . . Parts Recycled . | . . Recycled Matter . | . . Retrieved Matter . | . . Retrieved Components . | . . Parts Scanalyzed . | . . Part Schematics Acquired . | . . Parts Damaged . | . . Bothacking | -11 -10 ------------ Run | Yrd Mat Used RIF Installer . | . . Robots Hacked . | . . Non-combat . | . . Combat . | . . Robot Hacks Applied . | . . Relay Couplers Released . | . . Fabnet Peak Effective % . | . . Robots Rewired . | . . Allies Hacked . | . . Hacks Repelled . | . . Allies | -11 -10 -------- Run | Yrd Mat Total Allies . | . . Largest Group . | . . Highest-Rated Group . | . . Highest-Rated Ally . | . . Total Orders . | . . Ally Attacks . | . . Total Damage . | . . Kills . | . . Allies Corrupted . | . . Allies Melted . | . . Intel | -11 -10 ------- Run | Yrd Mat Robot Analysis Total . | . . Derelict Logs Recovered . | . . Drone Launches . | . . Drone Recoveries . | . . Exploration | -11 -10 ------------- Run | Yrd Mat Turns Passed 843 | 61 782 Spaces Moved 376 | 42 334 Core 22 | 15 7 Treads . | . . Legs 354 | 27 327 Wheels . | . . Hover . | . . Flight . | . . Fastest Speed 50 | 50 120 Average Speed 149 | 110 155 Slowest Speed 450 | 190 450 Overloaded Moves . | . . Propulsion Burnouts . | . . Robots Hopped . | . . Cave-ins Triggered . | . . Exploration Rate (%) 32 | 3 62 Regions Visited 1 Branch Regions . Pre-discovered Areas . | . . Known Exits Taken . | . . Unknown Exits Taken 1 | 1 . Scrap Searched . | . . Spaces Dug . | . . Terrain Destroyed 9 | . 9 Melee . | . . Projectile . | . . AOE 9 | . 9 Terrain Rammed . | . . Walls Destroyed . | . . Machines Disabled . | . . Actions | -11 -10 --------- Run | Yrd Mat Total 581 | 57 524 Wait 102 | . 102 Move 375 | 41 334 Hop . | . . Pick Up 27 | 8 19 Fast Attach . | . . Attach 19 | 6 13 Detach . | . . Swap 2 | 1 1 Drop 4 | 1 3 Fire 51 | . 51 Melee . | . . Ram . | . . Kick 1 | . 1 Crush . | . . Escape Stasis . | . . Rewire . | . . Trap . | . . Miscellaneous . | . . Route ------- -11/Scrapyard -10/Materials (discovered 1 exit: [*Mat]) History --------- Turn | Location | Event 5 | -11/Scrapyard | Discovered new exit (range 14) 62 | -11/Scrapyard | Entered Materials 305 | -10/Materials | Build established: Mutant 591 | -10/Materials | Discovered new exit (range 5) 807 | -10/Materials | Lost 4 parts (1p2n1w) 827 | -10/Materials | Core integrity fell below 50% 844 | -10/Materials | Core integrity fell below 20% 844 | -10/Materials | Destroyed self with Light Nuclear Core chain reaction Last Messages --------------- M001. 00709_ K-01 Serf cleans the Matter Pump. 00760_ Ion Engine destroyed. 00762_ Lgt. Assault Rifle destroyed. 00766_ Aluminum Leg destroyed. 00777_ Purification Channel disabled. 00782_ G-34 Mercenary destroyed. 00789_ Acquired 50 matter. 00790_ K-01 Serf collects debris. 00807_ K-01 Serf cleans the Matter Pump. 00810_ W-16 Scout sends out distress signal. 00817_ Integrated Corrupted Aluminum Leg (+6). 00824_ Acquired Mining Claw. 00828_ System corrupted: Ion Engine rejected. 00837_ Critical hit (Burn: +37). 00844_ Chain reaction triggered in Lgt. Nuclear Core. 00844_ Material Processor disabled. 00844_ G-34 Mercenary destroyed. 00844_ Hvy. EM Pulse Gun destroyed. 00844_ Destroyed Hvy. EM Pulse Gun. Map ----- +----------------------------------------------------+ | ??## """ # !!] ""# ???????????????? | | ??##[ # !]] Y"?????????????????? | | ??#########+## !]] ""# ???????????????? | | ????#### ##???????????????? | | ??????## < ???????????????? | | ??????## #### ##???????????????? | | ??????####### ############ ? ##???????????????? | | ??????####### ##########??????????????????????? | | ???????????## ## ##???????????????????????? | | ???????????## ## ##????? # ???????????????? | | ???########## ## ##???? # ???????????????? | | ???##########+#" ##??? # ???????????????? | | ???## #" ##??? # ???????????????? | | ???## #" ##### # ?????????????? | | ???## #T ##### ####?????????????? | | ???## #" + ^ ??????????? | | ???## #" ## ??????????? | | ???## #" ## ^?????????? | | ???## ## ## """ ??????????? | | ???## ## ## """ ?????????? | | ???######+#########+## t""" ?????????? | | ???#### ^ !!! ????????? | | ?????## !!! ????????? | | ?????#### #########+## %= !!! ????????? | | ????## ##! = ##g;#########"???????????? | | ????## ##??## #@ ####"???????????? | | ????########??## """# "" ##??????????????? | | ????#######???## """# """"" ##??????????????? | | ??????????????## """# """"" ##??????????????? | | ??????????????## "" # """"" ##??????????????? | | ??????????????## """# """ ?????????????????? | | ??????????????## ""# ?????????????????? | | ??????????????## """# ?????????????????? | | ??????????????## " # #???????????????? | | ??????????????## ##########???????????????? | | ??????????????#################???????????????? | | | | | | | | | | | | | | | | | | | | | | | | | | | | | +----------------------------------------------------+ Best States ------------- Heat Dissipation 25 Energy Generation 10 Energy Capacity 250 Matter Stores 300 Matter Capacity 300 Sight Range 16 Terrain Scan Density 10 Evasion (%) 55 Item Schematics ----------------- None Robot Schematics ------------------ None Fabricated ------------ Nothing Alien Tech Used ----------------- None Achievements -------------- None Challenges ------------ None Game ------ Seed SubdwellerShockRail Manual? 0 Play Time 00:07:48 Cumulative 21.2 hours Start 2024.04.05 @ 20:32:32 End 2024.04.05 @ 20:38:34 Sessions 1 Manual Loads 0 Difficulty Rogue Special Mode None Game No. 49 Rogue 46 Adventurer 3 Explorer 0 Win Type - Total 0 Types 0/0/0/0/0/0/0/0/0 Lore% 25 Gallery% 31 Achievement% 28 Wizard Run 0 Options --------- Layout 1 ASCII 0 Keyboard 0 Movement Mouse Keybinds 0 Fullscreen 1 Font 32/SmallcapsGlow Map View 77x35 Zoom Use 0% Tactical HUD 1 Map Filters NONE Filters NONE Steam 1 RUN: dd7cd6a1-57f9-41c7-960c-f68417cc6b12